Cogmind - Beta 15 @@@ ROGUE MODE // 2025.06.15 @ 14:36:31 Player: RNGesus Result: Destroyed by Triborg with Siege Cannon Performance ------------- Evolutions (0) 0 Regions Visited (3) 600 Robots Destroyed (11) 55 Value Destroyed (237) 237 Prototype IDs (2) 40 Alien Tech Used (0) 0 Bonus (0) 0 TOTAL SCORE: 932 Bonus ------- None Cogmind --------- Core Integrity 0/250 Matter 270/300 Energy 158/160 System Corruption 0% Temperature Cool (6) Movement Flying (37) Location -8/Scraptown Parts ------- > --- POWER (1) -------- Light Nuclear Core > --- PROPULSION (2) --- Improved Flight Unit Improved Flight Unit > --- UTILITY (2) ------ Improved System Shield > --- WEAPON (2) ------- CPS Tube Powered Hammer > --- INVENTORY (5) ---- Improved Flight Unit Improved Flight Unit Improved Sensor Array Rocket Launcher Plasma Cutter Peak State ------------ > --- POWER ------------ Light Nuclear Core > --- PROPULSION ------- Improved Flight Unit Improved Flight Unit > --- UTILITY ---------- Improved System Shield > --- WEAPON ----------- CPS Tube Powered Hammer > --- INVENTORY -------- Light Treads Improved Flight Unit Improved Flight Unit Improved Sensor Array Plasma Cutter [Rating: 22] Favorites ----------- Power Light Ion Engine Engine Light Ion Engine Power Core Light Nuclear Core Propulsion Light Treads Treads Light Treads Flight Unit Improved Flight Unit Utility Large Storage Unit Storage Large Storage Unit Hackware Improved System Shield Weapon Light Assault Rifle Energy Gun EM Pulse Gun Ballistic Gun Light Assault Rifle Special Weapon CPS Tube Impact Weapon Powered Hammer Build | -11 -10 -10 -8 ------- Run | Yrd Mat Sub Scr Slots Evolved . | . . . . Power . | . . . . Propulsion . | . . . . Utility . | . . . . Weapon . | . . . . Parts Attached 17 | 6 2 3 6 Power 3 | 1 . 1 1 Engine 2 | 1 . 1 . Core 1 | . . . 1 Reactor . | . . . . Propulsion 5 | 2 . 1 2 Treads 3 | 2 . 1 . Leg . | . . . . Wheel . | . . . . Hover . | . . . . Flight 2 | . . . 2 Utility 4 | 1 2 . 1 Device . | . . . . Storage 3 | 1 2 . . Processor . | . . . . Hackware 1 | . . . 1 Protection . | . . . . Artifact . | . . . . Weapon 5 | 2 . 1 2 Energy Gun 1 | . . 1 . Energy Cannon . | . . . . Ballistic Gun 2 | 2 . . . Ballistic Cannon . | . . . . Launcher . | . . . . Special Weapon 1 | . . . 1 Impact Weapon 1 | . . . 1 Slashing Weapon . | . . . . Piercing Weapon . | . . . . Special Melee Weapon . | . . . . Unidentified Prototypes 1 | . . . 1 Parts Lost 6 | . . 6 . Power 1 | . . 1 . Propulsion 2 | . . 2 . Utility . | . . . . Weapon 3 | . . 3 . Highest Loss Streak 5 | . . 5 . To Critical Strikes . | . . . . Average Backups 5 | 1 5 7 4 Power . | . 1 . . Propulsion 3 | . 2 4 3 Utility . | . . 1 . Weapon . | . 1 . . Tool/Special . | . . . . Unused Backups 6 | . . . 6 Power . | . . . . Propulsion 3 | . . . 3 Utility 1 | . . . 1 Weapon 1 | . . . 1 Tool/Special 1 | . . . 1 Average Slot Usage (%) 69 | . 85 73 50 Engine 8 | . 14 12 . Core 3 | . . . 8 Treads 21 | . 28 24 12 Flight 5 | . . . 14 Storage 8 | . 14 13 . Hackware 4 | . . . 12 Ballistic Gun 15 | . 28 21 . Peak Build Rating 22 | 6 7 7 22 Average Rating 8 | 4 6 6 11 On Entrance 3 | . 6 7 2 Naked Turns . | . . . . Heaviest Build 86 | 11 86 26 9 Greatest Support 40 | 40 40 40 10 Greatest Overweight (x) 2 | . 2 1 . Average Overweight (x) . | . . . . Largest Inventory Capacity 25 | 8 25 15 5 Average Capacity 10 | 6 14 14 5 Most Carried 8 | 2 8 8 5 Average Carried 5 | 1 5 7 4 Final Capacity 15 | 8 15 5 5 Final Carried 8 | 2 8 5 5 Class Distribution -------------------- 100% | Mutant Dominant Class ---------------- Mutant | -10/Materials Mutant | -10/Subcaves Mutant | -8/Scraptown Resources | -11 -10 -10 -8 ----------- Run | Yrd Mat Sub Scr Matter Collected 471 | 219 159 17 76 Remotely . | . . . . Salvage Created 385 | . 227 158 . Parts 28 | . 14 14 . Haulers Intercepted 1 | . 1 . . Recyclers Shooed . | . . . . Parts Field Recycled . | . . . . Retrieved Matter . | . . . . Parts Self-Destructed . | . . . . Prevented . | . . . . Kills | -11 -10 -10 -8 ------- Run | Yrd Mat Sub Scr Combat Hostiles Destroyed 8 | . 4 4 . Guns 8 | . 4 4 . Classes Destroyed 6 | . 5 1 . Builder 1 | . 1 . . Hauler 1 | . 1 . . Recycler 1 | . 1 . . Swarmer 3 | . 3 . . Grunt 1 | . 1 . . Subdweller 4 | . . 4 . Best Kill Streak 3 | . 3 2 . Combat Bots Only 3 | . 3 2 . Max Kills in Single Turn 1 | . 1 1 . Gunslinging . | . . . . Exploded . | . . . . Melee . | . . . . Uniques/NPCs Destroyed . | . . . . Combat | -11 -10 -10 -8 -------- Run | Yrd Mat Sub Scr Hostile Shots Fired 66 | . 15 47 4 Missed 20 | . 3 16 1 Hits 46 | . 12 31 3 Projectile 46 | . 12 31 3 AOE 2 | . . 2 . Damage Taken 1032 | . 101 759 172 Core 311 | . 9 154 148 Absorbed by Shields . | . . . . Core Remaining (%) 100 | 100 . . . Volleys Fired 47 | . 22 25 . Largest 2 | . 2 2 . Hottest 60 | . 40 60 . Shots Fired 91 | . 44 47 . Gun 91 | . 44 47 . Cannon . | . . . . Launcher . | . . . . Special . | . . . . Kinetic 81 | . 44 37 . Thermal . | . . . . Explosive . | . . . . Electromagnetic 10 | . . 10 . Robot Hit Streak 6 | . 5 6 . Robot Miss Streak 8 | . 8 1 . Penetration Max . | . . . . Secondary Targets 3 | . 1 2 . Max Gunslinging Chain 1 | . 1 1 . Shots Hit Robots 61 | . 24 37 . Core Hits 25 | . 12 13 . Critical Kills . | . . . . Critical Parts Destroyed . | . . . . Critical Strikes . | . . . . Melee Attacks 1 | . . . 1 Impact 1 | . . . 1 Slashing . | . . . . Piercing . | . . . . Sneak Attacks . | . . . . Combat Hostiles . | . . . . Follow-up Attacks . | . . . . Damage Inflicted 629 | . 279 350 . Guns 629 | . 279 350 . Cannons . | . . . . Explosions . | . . . . Melee . | . . . . Ramming . | . . . . Kinetic 565 | . 279 286 . Thermal . | . . . . Explosive . | . . . . Electromagnetic 64 | . . 64 . Impact . | . . . . Slashing . | . . . . Piercing . | . . . . Highest Corruption . | . . . . Average Corruption . | . . . . Corruption Purged . | . . . . Corruption Blocked . | . . . . Overload Shots . | . . . . Overflow Damage . | . . . . Projectiles . | . . . . Explosions . | . . . . Melee . | . . . . Knockbacks . | . . . . Impact . | . . . . Kinetic . | . . . . Secondary . | . . . . Self-Inflicted Damage . | . . . . Shots . | . . . . Rammed . | . . . . Targets Rammed . | . . . . Kicked . | . . . . Crushed . | . . . . Highest Temperature 6 | . 6 . 2 Average Temperature 5 | . 6 . 2 Received Heat Transfer 138 | . 18 108 12 Siege Activations . | . . . . Martial Activations . | . . . . Shielding Activations . | . . . . Robots Disrupted . | . . . . Combat Hostiles . | . . . . Robots Corrupted . | . . . . Combat Hostiles . | . . . . Parts Fried . | . . . . Impact Corruptions . | . . . . Robots Melted . | . . . . Combat Hostiles . | . . . . Parts Melted . | . . . . Heat Transferred . | . . . . Parts Sabotaged . | . . . . Parts Stolen . | . . . . Parts Stripped . | . . . . Power Chain Reactions . | . . . . Alert | -11 -10 -10 -8 ------- Run | Yrd Mat Sub Scr Maximum Alert Level . | . . . . Low Security (%) 100 | 100 100 . . Level 1 . | . . . . Level 2 . | . . . . Level 3 . | . . . . Level 4 . | . . . . Level 5 . | . . . . High Security . | . . . . Max Security . | . . . . Peak Influence 70 | . 70 . . Initial . | . . . . Average 13 | . 15 . . Influence Increases 117 | . 117 . . Destroy 0b10 Robot/C 80 | . 80 . . Destroy 0b10 Robot/NC 15 | . 15 . . Destroy Leader 22 | . 22 . . Influence Decreases 117 | . 117 . . Time Decay 117 | . 117 . . Squads Dispatched 1 | . 1 . . Investigation . | . . . . Extermination . | . . . . Reinforcement 1 | . 1 . . Assault . | . . . . Garrison . | . . . . Intercept . | . . . . Searches Triggered . | . . . . Construction Impeded . | . . . . Haulers Reinforced . | . . . . Active Scanning Responses . | . . . . Cargo Convoy Interrupts . | . . . . Stealth | -11 -10 -10 -8 --------- Run | Yrd Mat Sub Scr Distress Signals 1 | . 1 . . Communications Jammed . | . . . . Distress Signals . | . . . . Times Spotted 22 | . 8 8 6 Peak Tracking Total 8 | . 3 3 8 Tactical Retreats . | . . . . Traps | -11 -10 -10 -8 ------- Run | Yrd Mat Sub Scr Traps Triggered . | . . . . Indirectly . | . . . . Trap Hack Attempts . | . . . . Triggered . | . . . . Disarmed . | . . . . Reprogrammed . | . . . . Reused . | . . . . Traps Extracted . | . . . . Installed . | . . . . Triggered . | . . . . Machines | -11 -10 -10 -8 ---------- Run | Yrd Mat Sub Scr Machines Disabled 1 | . . . 1 Max in Single Turn 1 | . . . 1 Machines Repaired . | . . . . Machines Dismantled . | . . . . Machines Sabotaged . | . . . . Overloaded Fab Kills . | . . . . Hacking | -11 -10 -10 -8 --------- Run | Yrd Mat Sub Scr Machines Accessed 1 | . . . 1 Terminals . | . . . . Fabricators . | . . . . Repair Stations . | . . . . Recycling Units . | . . . . Scanalyzers . | . . . . Garrison Access . | . . . . Total Hacks 10 | . . . 10 Successful 10 | . . . 10 Failed . | . . . . Catastrophic . | . . . . Database Lockouts . | . . . . Manual . | . . . . Terminals . | . . . . Fabricators . | . . . . Repair Stations . | . . . . Recycling Units . | . . . . Scanalyzers . | . . . . Garrison Access . | . . . . Terminal Hacks 10 | . . . 10 Record 10 | . . . 10 Fabricator Hacks . | . . . . Repair Station Hacks . | . . . . Recycling Unit Hacks . | . . . . Scanalyzer . | . . . . Garrison Access Hacks . | . . . . Unauthorized Hacks . | . . . . Terminals . | . . . . Fabricators . | . . . . Repair Stations . | . . . . Recycling Units . | . . . . Scanalyzers . | . . . . Garrison Access . | . . . . Data Cores Recovered . | . . . . Used . | . . . . Hacking Detections . | . . . . Full Trace Events . | . . . . Feedback Events . | . . . . Feedback Blocked . | . . . . Robot Schematics Acquired . | . . . . Robots Built . | . . . . Authchips . | . . . . Time . | . . . . Total Robot Build Rating . | . . . . Part Schematics Acquired 1 | . . . 1 Parts Built . | . . . . Authchips . | . . . . Time . | . . . . Total Part Build Rating . | . . . . Parts Repaired . | . . . . Time . | . . . . Parts Recycled . | . . . . Recycled Matter . | . . . . Retrieved Matter . | . . . . Retrieved Components . | . . . . Parts Scanalyzed . | . . . . Part Schematics Acquired . | . . . . Parts Damaged . | . . . . Bothacking | -11 -10 -10 -8 ------------ Run | Yrd Mat Sub Scr Used RIF Installer . | . . . . Robots Hacked . | . . . . Non-combat . | . . . . Combat . | . . . . Robot Hacks Applied . | . . . . Relay Couplers Released . | . . . . Fabnet Peak Effective % . | . . . . Robots Rewired . | . . . . Allies Hacked . | . . . . Hacks Repelled . | . . . . Allies | -11 -10 -10 -8 -------- Run | Yrd Mat Sub Scr Total Allies . | . . . . Largest Group . | . . . . Highest-Rated Group . | . . . . Highest-Rated Ally . | . . . . Total Orders . | . . . . Ally Attacks . | . . . . Total Damage . | . . . . Kills . | . . . . Allies Corrupted . | . . . . Allies Melted . | . . . . Intel | -11 -10 -10 -8 ------- Run | Yrd Mat Sub Scr Active Infowar (turns) . | . . . . Robot Analysis Total . | . . . . Derelict Logs Recovered . | . . . . Drone Launches . | . . . . Drone Recoveries . | . . . . Exploration | -11 -10 -10 -8 ------------- Run | Yrd Mat Sub Scr Turns Passed 1360 | 74 463 347 476 Spaces Moved 1350 | 46 228 192 884 Core 419 | 9 . 42 368 Treads 415 | 37 228 150 . Legs . | . . . . Wheels . | . . . . Hover . | . . . . Flight 516 | . . . 516 Fastest Speed 37 | 50 160 50 37 Average Speed 87 | 138 170 143 51 Slowest Speed 320 | 160 320 240 60 Overloaded Moves . | . . . . Propulsion Burnouts . | . . . . Robots Hopped . | . . . . Potential Cave-ins . | . . . . Cave-ins Triggered . | . . . . Exploration Rate (%) 28 | 5 34 19 57 Regions Visited 3 Branch Regions 2 Pre-discovered Areas 2 | . . 1 1 Known Exits Taken . | . . . . Unknown Exits Taken 3 | 1 1 1 . Scrap Searched 5 | . . . 5 Spaces Dug . | . . . . Terrain Destroyed . | . . . . Melee . | . . . . Projectile . | . . . . AOE . | . . . . Terrain Rammed . | . . . . Walls Destroyed . | . . . . Machines Disabled . | . . . . Actions | -11 -10 -10 -8 --------- Run | Yrd Mat Sub Scr Total 1435 | 53 263 221 898 Wait 3 | . 3 . . Move 1347 | 45 227 191 884 Hop . | . . . . Pick Up 11 | 2 5 . 4 Fast Attach 12 | 6 2 . 4 Attach 4 | . . 3 1 Detach 2 | . 2 . . Swap 2 | . 1 . 1 Drop 6 | . 1 2 3 Fire 47 | . 22 25 . Melee 1 | . . . 1 Ram . | . . . . Kick . | . . . . Crush . | . . . . Escape Stasis . | . . . . Rewire . | . . . . Trap . | . . . . Miscellaneous . | . . . . Route ------- -11/Scrapyard -10/Materials (discovered 2 exits: [*Mat] / [*Sub]) -10/Subcaves -8/Scraptown (discovered 1 exit: [*Fac]) History --------- Turn | Location | Event 8 | -11/Scrapyard | Discovered new exit (range 16) 75 | -11/Scrapyard | Entered Materials 213 | -10/Materials | Discovered new exit (range 15) 310 | -10/Materials | Build established: Mutant 389 | -10/Materials | Discovered new exit (range 11) 538 | -10/Materials | Entered Subcaves 539 | -10/Subcaves | Approached by a straggling Scientist 649 | -10/Subcaves | Scientist uncovered a shortcut to Scraptown 844 | -10/Subcaves | Learned location of Zion (-6) 844 | -10/Subcaves | Met a Zionite searching for "candidates" 849 | -10/Subcaves | Lost 5 parts (1p1n3w) 866 | -10/Subcaves | Core integrity fell below 50% 885 | -10/Subcaves | Entered Scraptown 1009 | -8/Scraptown | Heard Great Nut preacher, LISTEN AND RECITE! 1010 | -8/Scraptown | Visited Cyclists 1036 | -8/Scraptown | Visited Spacefarers 1086 | -8/Scraptown | Visited Comm Corps 1161 | -8/Scraptown | Discovered new exit (range 3) 1340 | -8/Scraptown | Visited Shadow of the Wyrm 1348 | -8/Scraptown | Visited IN-MT5's Study 1353 | -8/Scraptown | Attacked by Scraptown defenders 1360 | -8/Scraptown | Core integrity fell below 20% 1361 | -8/Scraptown | Destroyed by Triborg with Siege Cannon Last Messages --------------- 01311_ Dropped Lgt. Treads. 01312_ Acquired Rocket Launcher. 01340_ LOCAL NARROWCAST: Shadow of the Wyrm. An epic journey awaits! 01345_ Triborg examines you suspiciously. 01348_ LOCAL NARROWCAST: IN-MT5's Study. IN-MT5: I'm so glad they agreed to lend me this space for my research and preparation. We need to treat MC to a good old peasant uprising. What better way to disrupt 0b10 operations than to enlist the help of the little guys who are already all over the place? I've got just the thing... 01353_ IN-MT5's Safe breached. 01353_ ANNOUNCEMENT: Intruder alert! Defend Scraptown! 01356_ Extracted schematic archive: IN-MT5's Pitchfork "Insurrection". 01359_ Triborg activates siege mode. 01359_ Penetrated by Siege Slug. 01359_ Knocked back. 01359_ Penetrated by Siege Slug. 01359_ Enclosure breached. 01361_ Penetrated by Siege Slug. Map ----- +----------------------------------------------------+ | " #?????????????????????????????????????????? | | """" #?????????????????????????????????????????? | | #### #?????????????????????????????????????????? | | ???# #?????????????????????????????????????????? | | #### #?????????????????????????????????????????? | | #?????????????????????????????????????????? | | #?????????????????????????????????????????? | | #### #?????????????????????????????????????????? | | ??# #?????????????????????????????????????????? | | ?### ########## ###????????????????????????????? | | ## ? ?????????????????????? | | # ? g ???????????????????? | | # ? ????????????????? | | ? #???????????????? | | # ? #???????????????? | | # ##############??#h #???????????????? | | # #???????????????# #???????????????? | | # #???????????????# #???????????????? | | # #???????????????# #???????????????? | | # #??????########## #???????????????? | | # #??????# # " #c #???????????????? | | ## #?????## # " # ###?????????????? | | ?# #?????#" """"" # ""#"????????????? | | ?# #?????#" # %j """"????????????? | | ## #?????#"" # ""#?????????????? | | # #?????#" % # @ #???????????????? | | # #?????#" " # #####???????????? | | #?????#" """ r ?????????? | | # #?????#"""""""" # j ?????????? | | # #?????########### """?????????? | | # #???????????????#r "???????????? | | # ################# j TT "???????????? | | # TT "???????????? | | # "???????????? | | # "???????????? | | # "???????????? | | ## "???????????? | | #"???????????? | | #????????????? | | #????????????? | | ##### ############# ########## ####????????????? | | ??# #?# #??# #???????????????? | | ??#" "#?# #??# #???????????????? | | ??#" ######" "#?# #??# #???????????????? | | ??#" "#""" # "#?# #??# #???????????????? | | ??#" "# #" "#?# #??# #???????????????? | | ??#" # ""#" "#?#" "#??# #???????????????? | | ??#" ##+###" "#?## " " ##??# #???????????????? | | ??#" "#??# # # #???# #???????????????? | | ??#""""""""""""#??########???# #???????????????? | +----------------------------------------------------+ Best States ------------- Heat Dissipation 25 Energy Generation 14 Energy Capacity 250 Matter Stores 300 Matter Capacity 300 Sight Range 16 Terrain Scan Density 10 Evasion (%) 62 Recoil Reduction 2 Defensive Hacking 12 Item Schematics ----------------- IN-MT5's Pitchfork "Insurrection" | -8/Scraptown | Archive Robot Schematics ------------------ None Fabricated ------------ Nothing Repaired ---------- Nothing Alien Tech Used ----------------- None Achievements -------------- None Challenges ------------ None Game ------ Seed SapperColdCharger Manual? 0 Play Time 00:18:13 Cumulative 414.5 hours Start 2025.06.15 @ 13:07:24 End 2025.06.15 @ 14:36:31 Sessions 1 Manual Loads 0 Difficulty Rogue Special Mode None Game No. 548 Rogue 548 Adventurer 0 Explorer 0 Win Type - Total 9 Types 6/1/1/1/0/0/0/0/0/0 Lore% 63 Gallery% 74 Achievement% 75 Wizard Run 0 Options --------- Layout 0 ASCII 0 Keyboard 1 Movement Numpad Keybinds 0 Fullscreen 2 Font 24/Smallcaps Map View 76x50 Zoom Use 0% Tactical HUD 1 Map Filters NONE Filters NONE Steam 1 RUN: 6670c6e7-d2b0-4710-8d33-0315dfdea21d